fUST/lending_fUST_20251114
["ID","MTS","AMOUNT","RATE_DAILY","PERIOD"]
[393891657,1763073044297,-3622.28809231,0.00044628,2]
[393891658,1763073044305,-1000.0,0.00044692,10]
[393891659,1763073044317,-3622.28809231,0.00044701,2]
[393891660,1763073044329,-2137.06696715,0.00044837,2]
[393891661,1763073044339,-212.35290427,0.00044877,120]
[393891662,1763073044348,-2137.06696715,0.00044931,2]
[393891663,1763073044359,-3622.28809235,0.00044972,2]
[393891664,1763073044369,-1000.0,0.00045075,10]
[393891665,1763073044379,-1000.0,0.00045075,10]
[393891666,1763073044389,-242.15909246,0.00045155,2]
[393891667,1763073044398,-1762.9960518,0.00045184,2]
[393891668,1763073044407,-151.0,0.00045197,120]
[393891669,1763073044416,-151.0,0.00045197,120]
[393891670,1763073044427,-151.0,0.00045197,120]
[393891671,1763073044436,-151.0,0.00045197,120]
[393891672,1763073044448,-151.0,0.00045207,120]
[393891673,1763073044458,-151.0,0.00045207,120]
[393891674,1763073044468,-151.0,0.00045207,120]
[393891675,1763073044478,-151.0,0.00045207,120]
[393891676,1763073044487,-151.0,0.00045207,15]
[393891677,1763073044497,-156.171134,0.00045207,120]
[393891678,1763073044507,-151.0,0.00045207,120]
[393891679,1763073044516,-151.0,0.00045207,120]
[393891680,1763073044525,-703.97,0.0004521,2]
[393891681,1763073044534,-336.20497038,0.0004523,2]
[393891682,1763073044542,-500.0,0.00045273,10]
[393891683,1763073044552,-500.0,0.00045273,10]
[393891684,1763073044561,-159.94,0.000454,14]
[393891685,1763073044569,-1560.87,0.000454,14]
[393891686,1763073044579,-445.42,0.000454,14]
[393891687,1763073044588,-162.0,0.00045513,120]
[393891688,1763073044597,-2137.06696715,0.00045603,2]
[393891689,1763073044606,-500.0,0.00045623,10]
[393891690,1763073044615,-244.91892175,0.00045625,2]
[393891691,1763073044624,-251.11897888,0.00045703,2]
[393891692,1763073044633,-395.0990739,0.00045777,30]
[393891693,1763073044642,-395.0990739,0.00045777,30]
[393891694,1763073044651,-386.3221791,0.00045777,30]
[393891695,1763073044661,-2137.06696715,0.00045864,2]
[393891696,1763073044670,-151.42696347,0.00045906,30]
[393891697,1763073044679,-168.0,0.00045993,2]
[393891698,1763073044688,-162.8757457,0.00046051,30]
[393891699,1763073044697,-297.8851395,0.00046051,30]
[393891700,1763073044707,-162.081776,0.00046143,2]
[393891701,1763073044716,-2137.06696715,0.00046206,2]
[393891702,1763073044726,-260.4103811,0.00046251,2]
[393891703,1763073044735,-168.0,0.00046397,2]
[393891704,1763073044745,-2137.06696715,0.00046475,2]
[393891705,1763073044754,-300.2814472,0.00046789,30]
[393891706,1763073044763,-191.1935952,0.00046789,30]
[393891707,1763073044772,-403.2567699,0.00046789,30]
[393891708,1763073044781,-593.2788276,0.00046789,30]
[393891709,1763073044790,-153.0,0.00046789,30]
[393891710,1763073044799,-300.2814472,0.00046789,30]
[393891711,1763073044808,-593.2788276,0.00046789,30]
[393891712,1763073044817,-300.2814472,0.00046789,30]
[393891713,1763073044826,-191.1935952,0.00046789,30]
[393891714,1763073044835,-593.2788276,0.00046789,30]
[393891715,1763073044843,-153.0,0.00046789,30]
[393891716,1763073044852,-300.2814472,0.00046789,30]
[393891717,1763073044862,-575.4217516,0.00046789,30]
[393891718,1763073044870,-153.0,0.00046789,30]
[393891719,1763073044879,-300.2814472,0.00046789,30]
[393891720,1763073044889,-191.1935952,0.00046789,30]
[393891721,1763073044898,-286.5464355,0.00046789,30]
[393891722,1763073044907,-185.8176324,0.00046789,30]
[393891723,1763073044916,-153.0,0.00046789,30]
[393891724,1763073044925,-270.0455652,0.00046799,2]
[393891725,1763073044934,-2137.06696715,0.00046843,2]
[393891726,1763073044944,-2137.06696723,0.00046961,2]
[393891727,1763073044953,-280.03725112,0.00047347,2]
[393891728,1763073044962,-164.907873,0.00047354,2]
[393891729,1763073044971,-151.0,0.00047448,120]
[393891730,1763073044980,-151.0,0.00047448,120]
[393891731,1763073044988,-151.0,0.00047448,120]
[393891732,1763073044997,-162.0,0.00047788,120]
[393891733,1763073045007,-168.0,0.00047836,2]
[393891734,1763073045016,-290.39862941,0.00047895,2]
[393891735,1763073045026,-33280.93938935,0.00048,30]
[393891736,1763073045035,-301.1433787,0.00048443,2]
[393891737,1763073045044,-500.0,0.00048452,10]
[393891738,1763073045054,-500.0,0.00048452,10]
[393891739,1763073045063,-500.0,0.00048452,3]
[393891740,1763073045072,-500.0,0.00048452,10]
[393891741,1763073045081,-500.0,0.00048452,10]
[393891742,1763073045090,-500.0,0.00048452,10]
[393891743,1763073045099,-500.0,0.00048452,10]
[393891744,1763073045108,-500.0,0.00048452,10]
[393891745,1763073045117,-500.0,0.00049,10]
[393891746,1763073045126,-1000.0,0.00049,10]
[393891747,1763073045135,-1000.0,0.00049,10]
[393891748,1763073045144,-1000.0,0.00049,3]
[393891749,1763073045153,-1000.0,0.00049,10]
[393891750,1763073045162,-1000.0,0.00049,10]
[393891751,1763073045171,-798.67482431,0.00049,10]
[393891752,1763073045180,-729.31571795,0.00049,10]
[393891753,1763073045189,-11000.0,0.00049,120]
[393891754,1763073045198,-151.0,0.00049,120]
[393891755,1763073045208,-151.0,0.00049,120]
[393891756,1763073045218,-151.0,0.00049,120]
[393891757,1763073045227,-241.08713317,0.00049438,2]
[393891758,1763073045236,-1049.45048534,0.00049548,10]
[393891759,1763073045245,-1500.0,0.00049548,10]
[393891760,1763073045254,-2000.0,0.0004969,21]
[393891761,1763073045263,-1000.0,0.00050096,10]
[393891762,1763073045273,-445.42,0.000501,14]
[393891763,1763073045282,-162.0,0.00050178,120]
[393891764,1763073045291,-162.081776,0.00052632,2]
[393891765,1763073045300,-162.0,0.00052686,120]
[393891766,1763073045308,-1775.49945114,0.00052989,14]
[393891767,1763073045319,-150.0,0.00054795,15]
[393891768,1763073045329,-151.0,0.00054795,120]
[393891769,1763073045338,-151.0,0.00054795,120]
[393891770,1763073045347,-151.0,0.00054795,120]
[393891771,1763073045356,-151.0,0.00054795,120]
[393891772,1763073045365,-198.0,0.00054795,120]
[393891773,1763073045374,-151.0,0.00054795,120]
[393891774,1763073045383,-151.23285473,0.00054795,120]
[393891775,1763073045392,-151.0,0.00054795,120]
[393891776,1763073045403,-151.0,0.00054795,120]
[393891777,1763073045412,-151.7717868,0.00054795,2]
[393891778,1763073045422,-151.0,0.00054795,120]
[393891779,1763073045431,-151.0,0.00054795,120]
[393891780,1763073045440,-151.0,0.00054795,120]
[393891781,1763073045450,-198.0,0.00054795,120]
[393891782,1763073045459,-151.23687593,0.00054795,120]
[393891783,1763073045468,-162.0,0.00055321,120]
[393891784,1763073045477,-423.34372583,0.00055992,2]
[393891785,1763073045486,-250.0,0.00056164,15]
[393891786,1763073045495,-501.15877118,0.0005656,15]
[393891787,1763073045503,-472.45402741,0.0005656,14]
[393891788,1763073045512,-1560.87,0.000569,14]
[393891789,1763073045521,-350.0,0.00057534,15]
[393891790,1763073045530,-151.0,0.000576,25]
[393891791,1763073045538,-162.0,0.00058087,120]
[393891792,1763073045547,-400.298992,0.00058904,15]
[393891793,1763073045556,-162.081776,0.0005912,2]
[393891794,1763073045565,-72541.5911,0.000592,120]
[393891795,1763073045574,-151.0,0.000592,120]
[393891796,1763073045583,-151.0,0.000592,7]
[393891797,1763073045592,-151.0,0.000592,120]
[393891798,1763073045601,-151.0,0.000592,120]
[393891799,1763073045610,-151.0,0.000592,120]
[393891800,1763073045619,-154.408256,0.000592,120]
[393891801,1763073045627,-151.0,0.000592,120]
[393891802,1763073045636,-151.0,0.000592,120]
[393891803,1763073045645,-151.0,0.000592,120]
[393891804,1763073045654,-151.0,0.000592,120]
[393891805,1763073045663,-151.0,0.000592,120]
[393891806,1763073045673,-151.0,0.000592,120]
[393891807,1763073045681,-151.0,0.000592,120]
[393891808,1763073045690,-151.0,0.000592,120]
[393891809,1763073045699,-183.834415,0.000592,120]
[393891810,1763073045708,-155.250114,0.000592,120]
[393891811,1763073045717,-151.0,0.000592,120]
[393891812,1763073045726,-183.834415,0.000592,120]
[393891813,1763073045735,-151.0,0.000592,120]
[393891814,1763073045743,-151.0,0.000592,120]
[393891815,1763073045752,-183.834415,0.000592,120]
[393891816,1763073045762,-183.834415,0.000592,120]
[393891817,1763073045772,-151.0,0.000592,120]
[393891818,1763073045781,-151.0,0.000592,120]
[393891819,1763073045791,-151.0,0.000592,120]
[393891820,1763073045800,-151.0,0.000592,120]
[393891821,1763073045809,-151.0,0.000592,30]
[393891822,1763073045818,-445.42,0.000594,14]
[393891823,1763073045827,-1560.87,0.000606,14]
[393891824,1763073045836,-162.0,0.00060991,120]
[393891826,1763073045846,-162.0,0.00064041,120]
[393891828,1763073045855,-413.0,0.00064423,120]
[393891830,1763073045864,-162.081776,0.00065609,2]
[393891831,1763073045872,-413.0,0.00067423,120]
[393891832,1763073045881,-3000.0,0.00069,120]
[393891833,1763073045890,-5793.605689,0.0006901,120]
[393891834,1763073045899,-413.0,0.00070423,120]
[393891835,1763073045907,-162.081776,0.00072098,120]
[393891836,1763073045917,-413.0,0.00073423,120]
[393891837,1763073045928,-684.4571102,0.000735,120]
[393891838,1763073045937,-5000.0,0.00074,7]
[393891839,1763073045946,-281.881846,0.00074344,120]
[393891840,1763073045955,-151.0,0.00074344,120]
[393891842,1763073045965,-151.0,0.00074344,120]
[393891843,1763073045974,-151.0,0.00074344,120]
[393891844,1763073045983,-8226.33192634,0.00074344,2]
[393891845,1763073045993,-445.42,0.000744,14]
[393891846,1763073046001,-1000.0,0.00074443,120]
[393891847,1763073046011,-38119.64924792,0.00074444,30]
[393891848,1763073046069,-246700.48881959,0.00074444,30]
[393891849,1763073046080,-8182.48614362,0.00074444,30]
[393891850,1763073046302,-308.28,0.00074444,30]
[393891851,1763073046313,-28454.97971975,0.00074444,30]
[393891852,1763073046340,230.90674666,0.00025243,2]
[393891853,1763073046356,-1283.15467251,0.00074444,30]
[393891854,1763073046649,-948.78287777,0.00074444,30]
[393891855,1763073060201,487.69093618,0.00025205,2]
[393891856,1763073077362,230.77644416,0.00025243,2]
[393891857,1763073085360,230.77631385,0.00025243,2]
[393891859,1763073128852,220.36990164,0.00037665,2]
[393891860,1763073136763,300.0,0.000252,20]
[393891861,1763073138442,150.0,0.00033529,2]
[393891862,1763073138863,150.0,0.00036577,2]
[393891863,1763073146593,300.0,0.000252,7]
[393891864,1763073151544,301.16422732,0.00030876,2]
[393891865,1763073156000,300.0,0.000252,2]
[393891867,1763073182769,182.74873846,0.000329,120]
[393891868,1763073183571,800.0,0.000253,2]
[393891869,1763073183621,595.13639254,0.00026396,2]
[393891870,1763073207203,150.0,0.00035103,2]
[393891871,1763073273910,-1068.70536009,0.00039659,4]
[393891872,1763073273935,-507.52,0.0004,15]
[393891873,1763073273960,-301.16422732,0.00040183,2]
[393891874,1763073273985,-1410.38813797,0.000425,28]
[393891875,1763073274011,-550.0,0.00042505,5]
[393891876,1763073274035,-1074.82,0.00042506,10]
[393891877,1763073274060,-442.04812211,0.00042515,7]
[393891878,1763073274085,-200.75190186,0.00042515,31]
[393891879,1763073274110,-439.67304276,0.00042515,31]
[393891880,1763073274136,-500.0,0.00042515,31]
[393891881,1763073274162,-500.0,0.00042515,31]
[393891882,1763073274193,-2030.85708031,0.00042515,7]
[393891883,1763073274218,-500.0,0.00042515,31]
[393891884,1763073274244,-185.95054526,0.00042515,31]
[393891885,1763073274269,-500.0,0.00042515,31]
[393891886,1763073274298,-2030.85708031,0.00042515,7]
[393891887,1763073274322,-500.0,0.00042515,31]
[393891888,1763073274347,-206.45270412,0.00042515,31]
[393891889,1763073274374,-2030.85708031,0.00042515,7]
[393891890,1763073274400,-501.77178994,0.00042515,31]
[393891891,1763073274428,-2030.85708031,0.00042515,7]
[393891892,1763073274455,-2030.85708031,0.00042515,7]
[393891893,1763073274486,-2030.85708031,0.00042515,7]
[393891894,1763073274513,-2030.85708031,0.00042515,7]
[393891895,1763073274540,-1394.7546064,0.00042515,7]
[393891896,1763073274577,150.0,0.00035535,2]
[393891897,1763073275960,-150.0,0.00038766,2]
[393891898,1763073275988,-150.0,0.00041996,2]
[393891899,1763073276019,-636.10247391,0.00042515,7]
[393891900,1763073276049,-2030.85708031,0.00042515,7]
[393891901,1763073276079,-2030.85708031,0.00042515,7]
[393891902,1763073276109,-2030.85708031,0.00042515,7]
[393891903,1763073276139,-2030.85708031,0.00042515,7]
[393891904,1763073276169,-2030.85708031,0.00042515,7]
[393891905,1763073276198,-2030.85708031,0.00042515,7]
[393891906,1763073276227,-2030.85708031,0.00042515,7]
[393891907,1763073276257,-2030.85708031,0.00042515,7]
[393891908,1763073276285,-2030.85708031,0.00042515,7]
[393891909,1763073276406,-2030.85708031,0.00042515,7]
[393891910,1763073276436,-2030.85708031,0.00042515,7]
[393891911,1763073276464,-1724.46964268,0.00042515,7]
[393891912,1763073276506,-306.38743763,0.00042515,7]
[393891913,1763073276533,-2030.8570803,0.00042515,7]
[393891914,1763073276561,-2030.85708031,0.00042515,7]
[393891915,1763073276589,-2030.85708031,0.00042515,7]
[393891916,1763073276618,-2030.85708031,0.00042515,7]
[393891917,1763073276647,-2030.85708031,0.00042515,7]
[393891918,1763073276676,-2030.85708031,0.00042515,7]
[393891919,1763073276705,-2030.85708031,0.00042515,7]
[393891920,1763073276735,-2030.85708031,0.00042515,7]
[393891921,1763073276765,-2030.85708031,0.00042515,7]
[393891922,1763073276794,-2030.85708031,0.00042515,7]
[393891923,1763073276824,-2030.85708031,0.00042515,7]
[393891924,1763073276854,-2030.85708031,0.00042515,7]
[393891925,1763073276884,-323.32759866,0.00042515,7]
[393891926,1763073277353,-1707.52948165,0.00042515,7]
[393891927,1763073277383,-2030.85708031,0.00042515,7]
[393891928,1763073277418,-2030.85708031,0.00042515,7]
[393891929,1763073277447,-2030.85708031,0.00042515,7]
[393891930,1763073277480,-2030.85708031,0.00042515,7]
[393891931,1763073277511,-2030.85708031,0.00042515,7]
[393891932,1763073277541,-2030.85708031,0.00042515,7]
[393891933,1763073277570,-2030.85708031,0.00042515,7]
[393891934,1763073277600,-2030.85708031,0.00042515,7]
[393891935,1763073277629,-2030.85708031,0.00042515,7]
[393891936,1763073277654,-5014.75679556,0.00042516,3]
[393891937,1763073278285,-25000.0,0.00042516,3]
[393891938,1763073279142,-25000.0,0.00042516,3]
[393891939,1763073280230,-2049.61,0.00042506,10]
[393891940,1763073280257,-22950.39,0.00042516,3]
[393891941,1763073280992,-25000.0,0.00042516,3]
[393891942,1763073289106,-442.04812211,0.00042515,7]
[393891943,1763073289131,-5394.95187789,0.00042516,3]
[393891944,1763073293907,270.99058067,0.00030876,2]
[393891945,1763073295183,2470086.22273207,0.00039659,20]
[393891946,1763073307439,-2342.25,0.00039697,10]
[393891947,1763073307470,-400.0,0.00039706,5]
[393891948,1763073308351,438.89,0.00039697,3]
[393891949,1763073312050,1951.88,0.00039697,10]
[393891950,1763073319052,219.44,0.00039697,3]
[393891951,1763073323050,1905.3,0.00039697,10]
[393891952,1763073323077,5.93,0.00039697,10]
[393891953,1763073329683,658.37,0.00039697,3]
[393891954,1763073334047,1592.69,0.00039649,10]
[393891955,1763073344877,1327.24,0.00039697,10]
[393891956,1763073355760,1106.04,0.00039697,10]
[393891958,1763073362248,400.0,0.00039706,5]
[393891959,1763073366161,921.7,0.00039697,10]
[393891960,1763073368767,200.0,0.00035618,15]
[393891961,1763073369428,-6530.29,0.00039751,2]
[393891962,1763073369560,-10000.01,0.00039751,2]
[393891963,1763073369739,-10000.01,0.00039751,2]
[393891964,1763073372326,-1762.35371807,0.00039751,2]
[393891965,1763073372353,-6475.30256386,0.00039751,2]
[393891966,1763073390751,-768.08,0.00039697,10]
[393891967,1763073390783,-640.07,0.00039697,10]
[393891968,1763073390831,-7183.71,0.00039751,2]
[393891969,1763073396650,-386.77138162,0.00039706,15]
[393891970,1763073396771,-370.52921439,0.00039706,7]
[393891971,1763073396800,-171.44661612,0.00039706,15]
[393891972,1763073396830,-468.42110435,0.00039706,15]
[393891973,1763073396861,-500.0,0.00039706,7]
[393891974,1763073396892,-364.56816692,0.00039706,7]
[393891975,1763073396922,-366.0818572,0.00039706,15]
[393891976,1763073396952,-500.0,0.00039706,15]
[393891977,1763073396985,-500.0,0.00039706,15]
[393891978,1763073397017,-500.0,0.00039706,15]
[393891979,1763073397048,-500.0,0.00039706,15]
[393891980,1763073397233,-744.3733188,0.00039706,7]
[393891981,1763073399718,-533.39,0.00039697,10]
[393891982,1763073399755,-601.3332832,0.00039706,7]
[393891983,1763073399787,-176.70992193,0.00039706,15]
[393891984,1763073399819,-500.0,0.00039706,15]
[393891985,1763073399853,-500.0,0.00039706,15]
[393891986,1763073399886,-500.0,0.00039706,15]
[393891987,1763073399922,-1345.706602,0.00039706,7]
[393891988,1763073399953,-500.0,0.00039706,15]
[393891989,1763073399983,-303.93129714,0.00039706,15]
[393891990,1763073400127,-77.86779146,0.00039706,15]
[393891991,1763073402955,-412.96458757,0.00039706,15]
[393891992,1763073402985,-500.0,0.00039706,15]
[393891993,1763073403022,-1345.706602,0.00039706,7]
[393891994,1763073403054,-590.3892974,0.00039706,15]
[393891995,1763073403086,-153.53323207,0.00039706,15]
[393891996,1763073403119,-500.0,0.00039706,15]
[393891997,1763073403151,-268.43873222,0.00039706,15]
[393891998,1763073403190,-1112.23849548,0.00039706,7]
[393891999,1763073403337,-233.46810652,0.00039706,7]
[393892000,1763073403368,-252.04874803,0.00039706,15]
[393892001,1763073403404,-1345.706602,0.00039706,7]
[393892002,1763073403445,-1345.706602,0.00039706,7]
[393892003,1763073403483,-1345.706602,0.00039706,7]
[393892004,1763073403551,-1345.706602,0.00039706,7]
[393892005,1763073403586,-1345.706602,0.00039706,7]
[393892006,1763073403621,-1345.706602,0.00039706,7]
[393892007,1763073403659,-580.063786,0.00039706,7]
[393892008,1763073403821,-626.72164093,0.00039706,7]
[393892009,1763073403863,-138.92117507,0.00039706,7]
[393892010,1763073403899,-1345.706602,0.00039706,7]
[393892011,1763073403935,-1345.706602,0.00039706,7]
[393892012,1763073403972,-1345.706602,0.00039706,7]
[393892013,1763073404007,-302.22143586,0.00039706,7]
[393892014,1763073404072,-1043.48516614,0.00039706,7]
[393892015,1763073404111,-1345.706602,0.00039706,7]
[393892016,1763073404148,-1345.706602,0.00039706,7]
[393892017,1763073404184,-1184.50665772,0.00039706,7]
[393892018,1763073404259,-161.19994428,0.00039706,7]
[393892019,1763073404296,-1345.706602,0.00039706,7]
[393892020,1763073404334,-1345.706602,0.00039706,7]
[393892021,1763073404370,-1345.706602,0.00039706,7]
[393892022,1763073404405,-257.66389744,0.00039706,7]
[393892023,1763073404631,-969.29998219,0.00039706,7]
[393892024,1763073404646,-118.74272237,0.00039706,7]
[393892025,1763073404655,-1226.96387963,0.00039706,7]
[393892026,1763073404669,-118.74272237,0.00039706,7]
[393892027,1763073404678,-1226.96387963,0.00039706,7]
[393892028,1763073405879,-118.74272237,0.00039706,7]
[393892029,1763073405913,-1345.706602,0.00039706,7]
[393892030,1763073405949,-1345.706602,0.00039706,7]
[393892031,1763073405983,-1345.706602,0.00039706,7]
[393892032,1763073406020,-342.57834126,0.00039706,7]
[393892033,1763073406082,-1003.12826074,0.00039706,7]
[393892034,1763073406118,-1345.706602,0.00039706,7]
[393892035,1763073406155,-1345.706602,0.00039706,7]
[393892036,1763073406191,-1265.22046852,0.00039706,7]
[393892037,1763073406307,-80.48613348,0.00039706,7]
[393892038,1763073406345,-1345.706602,0.00039706,7]
[393892039,1763073406380,-1345.706602,0.00039706,7]
[393892040,1763073406416,-1345.706602,0.00039706,7]
[393892041,1763073406455,-419.09151904,0.00039706,7]
[393892042,1763073406644,-664.52287518,0.00039706,7]
[393892043,1763073406661,-262.09220778,0.00039706,7]
[393892044,1763073406670,-1083.61439422,0.00039706,7]
[393892045,1763073408890,-262.09220778,0.00039706,7]
[393892046,1763073408936,-1345.706602,0.00039706,7]
[393892047,1763073408974,-1345.706602,0.00039706,7]
[393892048,1763073409012,-1345.706602,0.00039706,7]
[393892049,1763073409049,-55.87937044,0.00039706,7]
[393892050,1763073409134,-1289.82723156,0.00039706,7]
[393892051,1763073409175,-1345.706602,0.00039706,7]
[393892052,1763073409211,-1323.27815864,0.00039706,7]
[393892053,1763073409249,-1323.27815864,0.00039706,7]
[393892054,1763073409287,-692.2060028,0.00039706,7]
[393892055,1763073409341,-631.07215584,0.00039706,7]
[393892056,1763073409376,-1323.27815864,0.00039706,7]
[393892057,1763073409409,-1323.27815864,0.00039706,7]
[393892058,1763073409444,-1323.27815864,0.00039706,7]
[393892059,1763073409555,-1323.27815864,0.00039706,7]
[393892060,1763073409589,-1323.27815864,0.00039706,7]
[393892061,1763073409622,-1323.27815864,0.00039706,7]
[393892062,1763073409655,-737.06288952,0.00039706,7]
[393892063,1763073409793,-586.21526912,0.00039706,7]
[393892064,1763073409802,-105.99073368,0.00039706,7]
[393892065,1763073409817,-1323.27815864,0.00039706,7]
[393892066,1763073412060,-444.49,0.00039697,10]
[393892067,1763073412100,-158.66489804,0.00039706,7]
[393892068,1763073412138,-1323.27815864,0.00039706,7]
[393892069,1763073412175,-1323.27815864,0.00039706,7]
[393892070,1763073412221,-1323.27815864,0.00039706,7]
[393892071,1763073412336,-854.03125208,0.00039706,7]
[393892072,1763073412379,-469.24690656,0.00039706,7]
[393892073,1763073412415,-1323.27815864,0.00039706,7]
[393892074,1763073412453,-1587.93379036,0.00039706,7]
[393892075,1763073412490,-1323.27815864,0.00039706,7]
[393892076,1763073412574,-592.5359716,0.00039706,7]
[393892077,1763073414942,-730.74218704,0.00039706,7]
[393892078,1763073414978,-1323.27815864,0.00039706,7]
[393892079,1763073415017,-1323.27815864,0.00039706,7]
[393892080,1763073415056,-1587.93379036,0.00039706,7]
[393892081,1763073415171,-1323.27815864,0.00039706,7]
[393892082,1763073415211,-1323.27815864,0.00039706,7]
[393892083,1763073415250,-1323.27815864,0.00039706,7]
[393892084,1763073415402,-737.06288952,0.00039706,7]
[393892085,1763073415495,-586.21526912,0.00039706,7]
[393892086,1763073415534,-1323.27815864,0.00039706,7]
[393892087,1763073415570,-1323.27815864,0.00039706,7]
[393892088,1763073415606,-1323.27815864,0.00039706,7]
[393892089,1763073415714,-1587.93379036,0.00039706,7]
[393892090,1763073415754,-1323.27815864,0.00039706,7]
[393892091,1763073415792,-1323.27815864,0.00039706,7]
[393892092,1763073415829,-207.75162608,0.00039706,7]
[393892093,1763073416008,-12.64140496,0.00039706,7]
[393892094,1763073416023,-1102.8851276,0.00039706,7]
[393892095,1763073416032,-220.39303104,0.00039706,7]
[393892096,1763073416048,-1323.27815864,0.00039706,7]
[393892097,1763073418009,-44.26260068,0.00039706,7]
[393892098,1763073418048,-1323.27815864,0.00039706,7]
[393892099,1763073418078,-1368.21538849,0.00039751,2]
[393892100,1763073418135,-4528.49770438,0.00039751,2]
[393892101,1763073418167,-2697.66103522,0.00039851,2]
[393892102,1763073418196,-270.99058067,0.00039891,2]
[393892103,1763073420666,370.41,0.00039697,10]
[393892104,1763073421870,202.57897879,0.00019755,2]
[393892105,1763073422305,400.0,0.00039706,5]
[393892106,1763073422605,202.78155777,0.0003857,2]
[393892107,1763073425432,589.5153038,0.00039891,2]
[393892108,1763073425844,2297.42092786,0.00039651,2]
[393892109,1763073425869,6095.10857297,0.00039651,2]
[393892110,1763073489597,-308.67,0.00039697,10]
[393892111,1763073489629,-219.44,0.00039697,3]
[393892112,1763073489665,-257.23,0.00039697,10]
[393892113,1763073489805,-658.34,0.00039697,3]
[393892114,1763073489841,-214.36,0.00039697,10]
[393892115,1763073489880,-178.63,0.00039697,10]
[393892116,1763073489914,-400.0,0.00039705,5]
[393892117,1763073489944,-508.0,0.00039706,5]
[393892118,1763073489981,-1134.23842169,0.00039706,7]
[393892119,1763073490021,-1107.95473493,0.00039706,7]
[393892120,1763073495551,-26.28368676,0.00039706,7]
[393892121,1763073495961,893.17,0.00039697,10]
[393892122,1763073500374,163.6397586,0.00035618,60]
[393892163,1763073795031,230.87776499,0.00019755,2]
[393892164,1763073795648,230.87776499,0.00029138,2]
[393892176,1763073864091,291.407592,0.00036511,30]
[393892177,1763073898478,422.233,0.00037,120]
[393892184,1763073923272,6778.7111334,0.0003689,2]
[393892190,1763073932086,-231.10864276,0.0003852,2]
[393892191,1763073932107,-400.0,0.00039571,5]
[393892192,1763073932127,-42.77485255,0.00039572,2]
[393892214,1763073990092,-183.97903029,0.00039672,5]
[393892220,1763074042094,-397.42154227,0.00039672,5]
[393892222,1763074045095,-2.57845773,0.00039672,5]
[393892223,1763074045117,-224.47547421,0.00039673,2]
[393892239,1763074146115,-227.0,0.00039672,5]
[393892240,1763074146136,-165.53,0.00039703,10]
[393892241,1763074146160,-827.66,0.00039703,10]
[393892242,1763074146180,-438.88,0.00039724,3]
[393892243,1763074146206,-500.0,0.00039728,7]
[393892244,1763074146231,-500.0,0.00039728,7]
[393892245,1763074146263,-500.0,0.00039728,7]
[393892246,1763074146290,-500.0,0.00039728,7]
[393892247,1763074146315,-500.0,0.00039728,7]
[393892248,1763074146339,-500.0,0.00039728,7]
[393892249,1763074146362,-500.0,0.00039728,7]
[393892250,1763074146385,-500.0,0.00039728,7]
[393892251,1763074146408,-500.0,0.00039728,7]
[393892252,1763074146431,-500.0,0.00039728,7]
[393892253,1763074146453,-500.0,0.00039728,7]
[393892254,1763074146477,-500.0,0.00039728,7]
[393892255,1763074146499,-500.0,0.00039728,7]
[393892256,1763074146522,-500.0,0.00039728,7]
[393892257,1763074146545,-500.0,0.00039728,7]
[393892258,1763074146569,-500.0,0.00039728,7]
[393892259,1763074146591,-500.0,0.00039728,7]
[393892260,1763074146614,-500.0,0.00039728,7]
[393892261,1763074146637,-500.0,0.00039728,7]
[393892262,1763074146660,-500.0,0.00039728,7]
[393892263,1763074146683,-500.0,0.00039728,7]
[393892264,1763074146710,-500.0,0.00039728,7]
[393892265,1763074146739,-500.0,0.00039728,7]
[393892266,1763074146767,-500.0,0.00039728,7]
[393892267,1763074146795,-500.0,0.00039728,7]